Cogmind - Beta 15 @@@ ROGUE MODE // 2025.09.01 @ 00:00:59 Player: SpeltIncorrectyl Result: Self-destructed Performance ------------- Evolutions (2) 1000 Regions Visited (5) 1000 Robots Destroyed (23) 115 Value Destroyed (395) 395 Prototype IDs (0) 0 Alien Tech Used (0) 0 Bonus (53) 53 TOTAL SCORE: 2563 Bonus ------- Follower Combat Kills 53 Cogmind --------- Core Integrity 550/550 Matter 300/300 Energy 140/140 System Corruption 0% Temperature Cool (0) Movement Flying (29) Location -8/Materials Parts ------- > --- POWER (1) -------- Light Deuterium Engine > --- PROPULSION (4) --- Cesium-ion Thruster Cesium-ion Thruster Cesium-ion Thruster > --- UTILITY (3) ------ Targeting Computer > --- WEAPON (3) ------- (None) > --- INVENTORY (5) ---- Flight Unit Flight Unit Scythe Scythe Scythe Peak State ------------ > --- POWER ------------ Light Deuterium Engine > --- PROPULSION ------- Cesium-ion Thruster Cesium-ion Thruster Cesium-ion Thruster > --- UTILITY ---------- Medium Storage Unit Targeting Computer > --- WEAPON ----------- Scythe > --- INVENTORY -------- Cesium-ion Thruster Scythe Scythe Scythe [Rating: 18] Favorites ----------- Power Ion Engine Engine Ion Engine Propulsion Compact Wheel Leg Aluminum Leg Wheel Compact Wheel Flight Unit Cesium-ion Thruster Utility Terrain Scanner Device Terrain Scanner Storage Small Storage Unit Processor Terrain Scan Processor Weapon Mining Laser Energy Gun EM Pulse Gun Ballistic Gun Light Assault Rifle Launcher Rocket Launcher Special Weapon Mining Laser Slashing Weapon Scythe Build | -11 -10 -10 -9 -9 -8 ------- Run | Yrd Mat Min Mat Min Mat Slots Evolved 4 | . . . 2 . 2 Power . | . . . . . . Propulsion 2 | . . . 1 . 1 Utility 1 | . . . . . 1 Weapon 1 | . . . 1 . . Parts Attached 26 | 6 . 7 8 5 . Power 3 | 1 . . 1 1 . Engine 3 | 1 . . 1 1 . Core . | . . . . . . Reactor . | . . . . . . Propulsion 9 | 2 . 1 3 3 . Treads . | . . . . . . Leg 3 | . . . 3 . . Wheel 3 | 2 . 1 . . . Hover . | . . . . . . Flight 3 | . . . . 3 . Utility 7 | 1 . 3 2 1 . Device 2 | . . 2 . . . Storage 3 | 1 . . 1 1 . Processor 2 | . . 1 1 . . Hackware . | . . . . . . Protection . | . . . . . . Artifact . | . . . . . . Weapon 7 | 2 . 3 2 . . Energy Gun 1 | 1 . . . . . Energy Cannon . | . . . . . . Ballistic Gun 2 | 1 . 1 . . . Ballistic Cannon . | . . . . . . Launcher 1 | . . 1 . . . Special Weapon 1 | . . 1 . . . Impact Weapon . | . . . . . . Slashing Weapon 2 | . . . 2 . . Piercing Weapon . | . . . . . . Special Melee Weapon . | . . . . . . Unidentified Prototypes . | . . . . . . Parts Lost 8 | . . 3 3 2 . Power 1 | . . . 1 . . Propulsion 3 | . . 1 1 1 . Utility . | . . . . . . Weapon 4 | . . 2 1 1 . Highest Loss Streak 2 | . . 2 2 1 . To Critical Strikes . | . . . . . . Average Backups 4 | 1 1 4 6 6 . Power . | . 1 . . . . Propulsion 1 | . . . 3 3 . Utility 1 | . . 1 . . . Weapon 2 | . . 2 2 3 . Tool/Special . | . . . . . . Unused Backups 10 | . . 2 2 2 4 Power 2 | . . 1 1 . . Propulsion 4 | . . . 1 1 2 Utility . | . . . . . . Weapon 4 | . . 1 . 1 2 Tool/Special . | . . . . . . Average Slot Usage (%) 84 | . 85 87 65 66 . Engine 12 | . 14 14 4 4 . Leg 2 | . . . 16 18 . Wheel 24 | . 28 27 10 . . Device 8 | . . 10 . . . Storage 5 | . 14 4 10 6 . Processor 9 | . . 9 9 11 . Energy Gun 2 | . 14 2 . . . Ballistic Gun 4 | . 14 5 . . . Launcher 4 | . . 5 2 . . Special Weapon 5 | . . 6 . . . Slashing Weapon 1 | . . . 10 11 . Peak Build Rating 18 | 6 6 9 14 18 . Average Rating 7 | 3 6 7 10 13 . On Entrance 7 | . 6 6 6 10 14 Naked Turns . | . . . . . . Heaviest Build 16 | 13 13 16 16 12 . Greatest Support 30 | 26 26 26 30 30 . Greatest Overweight (x) . | . . . . . . Average Overweight (x) . | . . . . . . Largest Inventory Capacity 10 | 8 8 8 8 10 . Average Capacity 6 | 6 8 6 7 7 . Most Carried 8 | 5 1 8 8 8 . Average Carried 5 | 1 1 4 6 6 . Final Capacity 8 | 8 8 5 8 5 5 Final Carried 8 | 1 1 5 8 5 5 Class Distribution -------------------- 60% | Mutant 38% | Scavenger-Mutant Dominant Class ---------------- Mutant | -10/Materials Mutant | -10/Mines Mutant | -9/Materials Sprinter | -9/Mines Sprinter | -8/Materials Resources | -11 -10 -10 -9 -9 -8 ----------- Run | Yrd Mat Min Mat Min Mat Matter Collected 751 | 151 . 264 286 50 . Remotely . | . . . . . . Salvage Created 722 | . . 205 418 99 . Parts 43 | . . 23 20 . . Haulers Intercepted . | . . . . . . Recyclers Shooed . | . . . . . . Parts Field Recycled . | . . . . . . Retrieved Matter . | . . . . . . Parts Self-Destructed . | . . . . . . Prevented . | . . . . . . Kills | -11 -10 -10 -9 -9 -8 ------- Run | Yrd Mat Min Mat Min Mat Combat Hostiles Destroyed 20 | . . 3 10 7 . Melee 14 | . . . 7 7 . Guns 1 | . . 1 . . . AOE 5 | . . 2 3 . . Classes Destroyed 8 | . . 5 2 1 . Worker 1 | . . . 1 . . Builder 3 | . . 3 . . . Tunneler 3 | . . 3 . . . Recycler 2 | . . 1 1 . . Swarmer 5 | . . 3 2 . . Grunt 8 | . . 1 7 . . Sentry 1 | . . . 1 . . Assembled 7 | . . . . 7 . Best Kill Streak 6 | . . 3 6 4 . Combat Bots Only 6 | . . 3 6 4 . Max Kills in Single Turn 2 | . . 2 2 1 . Gunslinging . | . . . . . . Exploded 2 | . . 1 2 . . Melee 1 | . . . 1 1 . Uniques/NPCs Destroyed . | . . . . . . Combat | -11 -10 -10 -9 -9 -8 -------- Run | Yrd Mat Min Mat Min Mat Hostile Shots Fired 104 | . . 14 41 49 . Missed 27 | . . 5 9 13 . Hits 77 | . . 9 32 36 . Melee 5 | . . . . 5 . Projectile 72 | . . 9 32 31 . AOE 1 | . . . . 1 . Critical Strikes 1 | . . . . 1 . Damage Taken 1473 | . . 471 386 616 . Core 576 | . . 200 158 218 . Absorbed by Shields . | . . . . . . Core Remaining (%) 42 | 100 . 20 . 6 . Volleys Fired 46 | . . 42 4 . . Largest 2 | . . 2 1 . . Hottest 120 | . . 120 33 . . Shots Fired 70 | . . 66 4 . . Gun 39 | . . 39 . . . Cannon . | . . . . . . Launcher 13 | . . 9 4 . . Special 18 | . . 18 . . . Kinetic 35 | . . 35 . . . Thermal 18 | . . 18 . . . Explosive 13 | . . 9 4 . . Electromagnetic 4 | . . 4 . . . Robot Hit Streak 6 | . . 6 3 . . Robot Miss Streak 3 | . . 3 1 . . Penetration Max . | . . . . . . Secondary Targets . | . . . . . . Shots Hit Robots 53 | . . 25 20 8 . Core Hits 38 | . . 17 14 7 . Critical Kills . | . . . . . . Critical Parts Destroyed . | . . . . . . Critical Strikes 2 | . . . 2 . . Sever 2 | . . . 2 . . Melee Attacks 37 | . . . 25 12 . Impact . | . . . . . . Slashing 37 | . . . 25 12 . Piercing . | . . . . . . Sneak Attacks 2 | . . . 2 . . Combat Hostiles . | . . . . . . Follow-up Attacks . | . . . . . . Damage Inflicted 1971 | . . 730 932 309 . Guns 187 | . . 187 . . . Cannons . | . . . . . . Explosions 786 | . . 444 342 . . Melee 899 | . . . 590 309 . Ramming 3 | . . 3 . . . Kinetic 164 | . . 164 . . . Thermal 96 | . . 96 . . . Explosive 786 | . . 444 342 . . Electromagnetic 23 | . . 23 . . . Impact . | . . . . . . Slashing 899 | . . . 590 309 . Piercing . | . . . . . . Highest Corruption 4 | . . 4 . . . Average Corruption 4 | . . 4 . . . Corruption Purged . | . . . . . . Corruption Blocked . | . . . . . . Effects 76 | . . 76 . . . Message Errors 14 | . . 14 . . . Matter Fused 21 | . . 21 . . . Heat Flow Errors 9 | . . 9 . . . Energy Discharges 8 | . . 8 . . . Parts Fused 2 | . . 2 . . . Data Loss (minor) 14 | . . 14 . . . Data Loss (major) 4 | . . 4 . . . Misfires 3 | . . 3 . . . Alerts 1 | . . 1 . . . Overload Shots . | . . . . . . Overflow Damage 55 | . . 18 37 . . Projectiles . | . . . . . . Explosions 30 | . . 18 12 . . Melee 25 | . . . 25 . . Knockbacks . | . . . . . . Impact . | . . . . . . Kinetic . | . . . . . . Secondary . | . . . . . . Self-Inflicted Damage 88 | . . 88 . . . Shots 3 | . . 3 . . . Rammed 1 | . . 1 . . . Targets Rammed 1 | . . 1 . . . Kicked . | . . . . . . Crushed . | . . . . . . Highest Temperature 252 | . . 252 . 2 . Average Temperature 64 | . . 65 . 2 . Received Heat Transfer 230 | . . . 195 35 . Siege Activations . | . . . . . . Martial Activations . | . . . . . . Shielding Activations . | . . . . . . Robots Disrupted . | . . . . . . Combat Hostiles . | . . . . . . Robots Corrupted . | . . . . . . Combat Hostiles . | . . . . . . Parts Fried . | . . . . . . Impact Corruptions . | . . . . . . Robots Melted . | . . . . . . Combat Hostiles . | . . . . . . Parts Melted . | . . . . . . Heat Transferred 200 | . . 200 . . . Parts Sabotaged . | . . . . . . Parts Stolen . | . . . . . . Parts Stripped . | . . . . . . Power Chain Reactions . | . . . . . . Alert | -11 -10 -10 -9 -9 -8 ------- Run | Yrd Mat Min Mat Min Mat Maximum Alert Level . | . . . . . . Low Security (%) 100 | 100 100 100 100 100 . Level 1 . | . . . . . . Level 2 . | . . . . . . Level 3 . | . . . . . . Level 4 . | . . . . . . Level 5 . | . . . . . . High Security . | . . . . . . Max Security . | . . . . . . Peak Influence 145 | . . 102 145 55 . Initial 17 | . . . . 5 17 Average 23 | . . 18 66 9 . Influence Increases 713 | . . 281 357 75 . Destroy 0b10 Robot/C 360 | . . 120 240 . . Destroy 0b10 Robot/NC 50 | . . 35 15 . . Destroy Leader 52 | . . 20 32 . . Allied During Kill 27 | . . 17 10 . . Successful Hack 15 | . . . 15 . . Destroy Structure 119 | . . 89 30 . . Partial Spotted 30 | . . . . 30 . Lose Combat Pursuer 60 | . . . 15 45 . Influence Decreases 696 | . . 281 342 45 28 Entered New Map 38 | . . . . 10 28 Time Decay 568 | . . 271 272 25 . Lost Part 50 | . . 10 30 10 . Lost Ally 40 | . . . 40 . . Squads Dispatched . | . . . . . . Investigation . | . . . . . . Extermination . | . . . . . . Reinforcement . | . . . . . . Assault . | . . . . . . Garrison . | . . . . . . Intercept . | . . . . . . Searches Triggered . | . . . . . . Construction Impeded . | . . . . . . Haulers Reinforced . | . . . . . . Active Scanning Responses . | . . . . . . Cargo Convoy Interrupts . | . . . . . . Stealth | -11 -10 -10 -9 -9 -8 --------- Run | Yrd Mat Min Mat Min Mat Distress Signals . | . . . . . . Communications Jammed . | . . . . . . Distress Signals . | . . . . . . Times Spotted 45 | . . 6 15 24 . Peak Tracking Total 14 | . . 3 7 14 . Tactical Retreats 6 | . . . 1 5 . Traps | -11 -10 -10 -9 -9 -8 ------- Run | Yrd Mat Min Mat Min Mat Traps Triggered . | . . . . . . Indirectly . | . . . . . . Trap Hack Attempts . | . . . . . . Triggered . | . . . . . . Disarmed . | . . . . . . Reprogrammed . | . . . . . . Reused . | . . . . . . Traps Extracted . | . . . . . . Installed . | . . . . . . Triggered . | . . . . . . Machines | -11 -10 -10 -9 -9 -8 ---------- Run | Yrd Mat Min Mat Min Mat Machines Disabled . | . . . . . . Max in Single Turn . | . . . . . . Machines Repaired . | . . . . . . Machines Dismantled . | . . . . . . Machines Sabotaged . | . . . . . . Overloaded Fab Kills . | . . . . . . Hacking | -11 -10 -10 -9 -9 -8 --------- Run | Yrd Mat Min Mat Min Mat Machines Accessed 2 | . . . 2 . . Terminals 1 | . . . 1 . . Fabricators . | . . . . . . Repair Stations . | . . . . . . Recycling Units . | . . . . . . Scanalyzers 1 | . . . 1 . . Garrison Access . | . . . . . . Total Hacks 6 | . . . 6 . . Successful 6 | . . . 6 . . Failed . | . . . . . . Catastrophic . | . . . . . . Database Lockouts . | . . . . . . Manual 2 | . . . 2 . . Terminals 2 | . . . 2 . . Fabricators . | . . . . . . Repair Stations . | . . . . . . Recycling Units . | . . . . . . Scanalyzers 4 | . . . 4 . . Garrison Access . | . . . . . . Terminal Hacks 2 | . . . 2 . . Branch Access Points 1 | . . . 1 . . Terminal Index 1 | . . . 1 . . Fabricator Hacks . | . . . . . . Repair Station Hacks . | . . . . . . Recycling Unit Hacks . | . . . . . . Scanalyzer 4 | . . . 4 . . Insert Component 2 | . . . 2 . . Analyze 2 | . . . 2 . . Garrison Access Hacks . | . . . . . . Unauthorized Hacks . | . . . . . . Terminals . | . . . . . . Fabricators . | . . . . . . Repair Stations . | . . . . . . Recycling Units . | . . . . . . Scanalyzers . | . . . . . . Garrison Access . | . . . . . . Data Cores Recovered . | . . . . . . Used . | . . . . . . Hacking Detections 1 | . . . 1 . . Full Trace Events . | . . . . . . Feedback Events . | . . . . . . Feedback Blocked . | . . . . . . Robot Schematics Acquired . | . . . . . . Robots Built . | . . . . . . Authchips . | . . . . . . Time . | . . . . . . Total Robot Build Rating . | . . . . . . Part Schematics Acquired 2 | . . . 2 . . Parts Built . | . . . . . . Authchips . | . . . . . . Time . | . . . . . . Total Part Build Rating . | . . . . . . Parts Repaired . | . . . . . . Time . | . . . . . . Parts Recycled . | . . . . . . Recycled Matter . | . . . . . . Retrieved Matter . | . . . . . . Retrieved Components . | . . . . . . Parts Scanalyzed 2 | . . . 2 . . Part Schematics Acquired 2 | . . . 2 . . Parts Damaged 1 | . . . 1 . . Bothacking | -11 -10 -10 -9 -9 -8 ------------ Run | Yrd Mat Min Mat Min Mat Used RIF Installer . | . . . . . . Robots Hacked . | . . . . . . Non-combat . | . . . . . . Combat . | . . . . . . Robot Hacks Applied . | . . . . . . Relay Couplers Released . | . . . . . . Fabnet Peak Effective % . | . . . . . . Robots Rewired . | . . . . . . Allies Hacked . | . . . . . . Hacks Repelled . | . . . . . . Allies | -11 -10 -10 -9 -9 -8 -------- Run | Yrd Mat Min Mat Min Mat Total Allies 3 | . . 3 . . . Largest Group 3 | . . 3 2 . . Highest-Rated Group 40 | . . 40 32 . . Highest-Rated Ally 16 | . . 16 16 . . Total Orders . | . . . . . . Ally Attacks 28 | . . 12 16 . . Total Damage 222 | . . 62 160 . . Kills 6 | . . 3 3 . . Allies Corrupted . | . . . . . . Allies Melted . | . . . . . . Intel | -11 -10 -10 -9 -9 -8 ------- Run | Yrd Mat Min Mat Min Mat Active Infowar (turns) 3941 | . . 3935 6 . . Terrain 3511 | . . 3505 6 . . Structural 430 | . . 430 . . . Robot Analysis Total . | . . . . . . Derelict Logs Recovered 3 | . . 2 . 1 . Drone Launches . | . . . . . . Drone Recoveries . | . . . . . . Exploration | -11 -10 -10 -9 -9 -8 ------------- Run | Yrd Mat Min Mat Min Mat Turns Passed 6247 | 49 46 5280 673 199 . Spaces Moved 3444 | 48 51 2480 519 346 . Core 18 | 18 . . . . . Treads . | . . . . . . Legs 323 | . . . 265 58 . Wheels 2815 | 30 51 2480 254 . . Hover . | . . . . . . Flight 288 | . . . . 288 . Fastest Speed 29 | 50 90 90 80 29 . Average Speed 87 | 75 90 90 105 44 . Slowest Speed 120 | 90 90 100 120 120 . Overloaded Moves . | . . . . . . Propulsion Burnouts . | . . . . . . Robots Hopped 11 | . . . . 11 . Potential Cave-ins . | . . . . . . Cave-ins Triggered 1 | . . 1 . . . Exploration Rate (%) 37 | 3 14 101 27 77 1 Regions Visited 5 Branch Regions 2 Pre-discovered Areas 1 | . . . . 1 . Known Exits Taken 1 | . . . 1 . . Unknown Exits Taken 4 | 1 1 1 . 1 . Scrap Searched 2 | . . 1 . 1 . Spaces Dug 8 | . . 4 4 . . Terrain Destroyed 161 | . . 118 43 . . Melee 4 | . . . 4 . . Projectile 7 | . . 7 . . . AOE 150 | . . 111 39 . . Terrain Rammed . | . . . . . . Walls Destroyed . | . . . . . . Machines Disabled . | . . . . . . Actions | -11 -10 -10 -9 -9 -8 --------- Run | Yrd Mat Min Mat Min Mat Total 6515 | 60 50 5433 607 365 . Wait 2903 | . . 2880 23 . . Move 3420 | 47 50 2479 518 326 . Hop 8 | . . . . 8 . Pick Up 40 | 7 . 11 16 6 . Fast Attach 4 | . . . 4 . . Attach 24 | 6 . 7 7 4 . Detach 4 | . . 4 . . . Swap 5 | . . 4 . 1 . Drop 23 | . . 5 10 8 . Fire 46 | . . 42 4 . . Melee 37 | . . . 25 12 . Ram 1 | . . 1 . . . Kick . | . . . . . . Crush . | . . . . . . Escape Stasis . | . . . . . . Rewire . | . . . . . . Trap . | . . . . . . Miscellaneous . | . . . . . . Route ------- -11/Scrapyard -10/Materials -10/Mines (discovered 3 exits: *Mat x2 / [*Sub]) -9/Materials (discovered 2 exits: *Min x2) -9/Mines (discovered 2 exits: [*Mat x2]) -8/Materials History --------- Turn | Location | Event 5 | -11/Scrapyard | Discovered new exit (range 16) 50 | -11/Scrapyard | Entered Materials 60 | -10/Materials | Discovered new exit (range 16) 96 | -10/Materials | Entered Mines 141 | -10/Mines | Learned Materials trap positions 179 | -10/Mines | Found a hidden stash of uninstalled traps 301 | -10/Mines | Build established: Mutant 301 | -10/Mines | Received a Rocket Launcher from a helpful Derelict 374 | -10/Mines | Learned Materials security intel 384 | -10/Mines | Assisted by bots powering up and referring to "LRC-V3" 506 | -10/Mines | Discovered new exit (range 12) 605 | -10/Mines | Discovered new exit (range 12) 737 | -10/Mines | Discovered new exit (range 6) 1278 | -10/Mines | Crushed by falling debris 1278 | -10/Mines | Core integrity fell below 50% 1745 | -10/Mines | Build established: Scavenger-Mutant 4130 | -10/Mines | Build established: Mutant 5376 | -10/Mines | Entered Materials 5376 | -9/Materials | Accompanied by 2 allies 5376 | -9/Materials | Evolved 2 slots: Propulsion x1, Weapon x1 5377 | -9/Materials | Loaded intel: 21 trap records 5561 | -9/Materials | Identified exit to Mines 6049 | -9/Materials | Entered Mines 6050 | -9/Mines | Assembled infested the area 6126 | -9/Mines | Core integrity fell below 50% 6157 | -9/Mines | Core integrity fell below 20% 6193 | -9/Mines | Learned Materials machine intel 6194 | -9/Mines | Learned location of Storage (-8) 6206 | -9/Mines | Discovered new exit (range 7) 6245 | -9/Mines | Discovered new exit (range 10) 6248 | -9/Mines | Entered Materials 6248 | -8/Materials | Evolved 2 slots: Propulsion x1, Utility x1 6248 | -8/Materials | Self-destructed Last Messages --------------- place, they've tightened security following our previous successful raids." World map updated: -8/Storage. GN-EHR(g): "We scattered so the Unaware couldn't effectively use their advantage in numbers, and I suggest you do the same." GN-EHR(g) slips back into the shadows. K-01 Serf collects debris. EXIT=FOUND K-01 Serf collects debris. G-34 Mercenary suffers critical hit (Destroy). G-34 Mercenary destroyed. EXIT=FOUND YI-UF0 mumbles something. The unstable cave ceiling collapses. Scythe destroyed. PARAMETERS=PROPULSION+1,UTILITY+1 LOCATION=UNKNOWN GOAL=ESCAPE [Achievement: Just Browsing] Map ----- +----------------------------------------------------+ | ?????????????????????????????????????? | | ?????????????????????????????????????? | | ?????????????????????????????????????? | | ?????????????????????????????????????? | | ?????????????????????????????????????? | | ?????????????????????????????????????? | | ?????????????????????????????????????? | | ?????????????????????????????????????? | | ?????????????????????????????????????? | | ?????????????????????????????????????? | | ?????????????????????????????????????? | | ?????????????????????????????????????? | | ?????????????????????????????????????? | | ?????????????????????????????????????? | | ?????????????????????????????????????? | | ?????????????????????????????????????? | | ?????????????????????????????????????? | | ?????????????????????????????????????? | | ?????????????????????????????????????? | | ?????????????????????????????????????? | | ?????????????????????????????????????? | | ?????????????????????????????????????? | | ?????????????????????????????????????? | | ????????????# #######+####?????????? | | ?????????? #?????????? | | ?????????? @ #?????????? | | ?????????? #?????????? | | ?????????????###+######+####?????????? | | ?????????????????????????????????????? | | ?????????????????????????????????????? | | ?????????????????????????????????????? | | ?????????????????????????????????????? | | ?????????????????????????????????????? | | ?????????????????????????????????????? | | ?????????????????????????????????????? | | ?????????????????????????????????????? | | ?????????????????????????????????????? | | ?????????????????????????????????????? | | | | | | | | | | | | | | | | | | | | | | | | | +----------------------------------------------------+ Best States ------------- Heat Dissipation 28 Energy Generation 14 Energy Capacity 250 Matter Stores 300 Matter Capacity 300 Sight Range 16 Terrain Scan Range 14 Terrain Scan Density 85 Evasion (%) 64 Targeting Accuracy 5 Item Schematics ----------------- Lgt. Deuterium Engine | -9/Materials | Scanalyzed Cesium-ion Thruster | -9/Materials | Scanalyzed Robot Schematics ------------------ None Fabricated ------------ Nothing Repaired ---------- Nothing Alien Tech Used ----------------- None Achievements -------------- Just Browsing Challenges ------------ None Game ------ Seed HellfireOpticalProcessor Manual? 0 Play Time 00:27:44 Cumulative 39.9 hours Start 2025.08.31 @ 23:29:58 End 2025.09.01 @ 00:00:59 Sessions 1 Manual Loads 0 Difficulty Rogue Special Mode None Game No. 55 Rogue 45 Adventurer 10 Explorer 0 Win Type - Total 0 Types 0/0/0/0/0/0/0/0/0/0 Lore% 12 Gallery% 25 Achievement% 30 Wizard Run 0 Options --------- Layout 1 ASCII 0 Keyboard 0 Movement Arrows Keybinds 0 Fullscreen 1 Font 24/Smallcaps Map View 50x35 Zoom Use 0% Tactical HUD 0 Map Filters NONE Filters NONE Steam 1 RUN: d72f1fd4-4baf-4cfc-a308-df51bcc94fa6